Workbook

Sheet Сократов Гомер Врубелевич

Sheet Петров Петр Петрович

Sheet Сидоров Сидор Сидорович

Sheet Иванов Иван Иванович

Sheet Заполнить
A1: №п/п | B1: Дата приема на работу | C1: ФИО | D1: День рождения | E1: Должность | F1: карточка № | G1: Общий фонд | H1: Оклад бух. | I1: Задолженность с прошлого месяца | J1: Отработано дней | K1: аванс 05 - 10 числа | L1: банк | M1: К-во дней отпуска | N1: Отпускные | O1: К доплате 05 - 10 числа следующего месяца | P1: План продаж на месяц | Q1: Продажи за месяц | R1: Выполнение плана | S1: бонусы | T1: Премия | U1: штрафы и удержания | V1: Оплатить до 05 - 10 числа следующего месяца | W1: В расчетный листок | Y1: Задолженность +компании / -сотрудника | Z1: Л.План | AA1: Суп.план | AB1: П | AC1: С.П.
A2: 1 | C2: Иванов Иван Иванович | E2: Ген. директор | G2: 10000 | H2: 5000 | J2: 23 | K2: 4000 | L2: =H2-H2*0.13 -> 4350 | M2: 10 | N2: 5000 | O2: =G2-I2-K2-L2+N2 -> 6650 | S2: 500 | T2: 500 | U2: 100 | V2: =O2+S2+T2-U2 -> 7550 | W2: =G2+N2+S2+T2 -> 16000 | X2: =I2+U2 -> 100
A3: 2 | C3: Сидоров Сидор Сидорович | E3: Главный бухгалтер | G3: 10000 | H3: 5000 | I3: 1000 | J3: 23 | K3: 4000 | L3: =H3-H3*0.13 -> 4350 | O3: =G3-I3-K3-L3+N3 -> 650 | V3: =O3+S3+T3-U3 -> 650 | W3: =K3+L3+N3+O3+S3+T3-I3-U3 -> 8000 | X3: =I3+U3 -> 1000
A4: 3 | C4: Петров Петр Петрович | E4: Бухгалтер | G4: 10000 | H4: 5000 | J4: 23 | K4: 4000 | L4: 4350 | O4: 1650 | V4: 1650 | W4: 10000 | X4: 0
A5: 4 | C5: Сократов Гомер Врубелевич | G5: 10000 | H5: 5000 | K5: 4000 | L5: 4350 | O5: 1650 | V5: 1650 | W5: 10000 | X5: 0
A6: 5 | E6: Менеджер | G6: 10000 | H6: 5000 | J6: 23 | K6: 4000 | L6: 4350 | O6: =G6-I6-K6-L6+N6 -> 1650 | V6: =O6+S6+T6-U6 -> 1650 | W6: =I6+K6+L6+O6+S6+T6 -> 10000 | X6: 0
A7: 6 | E7: Менеджер | G7: 10000 | H7: 5000 | J7: 23 | K7: 4000 | L7: 4350 | O7: =G7-I7-K7-L7+N7 -> 1650 | V7: =O7+S7+T7-U7 -> 1650 | W7: 10000 | X7: 0
A8: 7 | E8: Менеджер | G8: 10000 | H8: 5000 | J8: 23 | K8: 4000 | L8: 4350 | O8: 1650 | V8: 1650 | W8: 10000 | X8: 0
A9: 8 | E9: Менеджер | G9: 10000 | H9: 5000 | I9: 1000 | J9: 23 | K9: 4000 | L9: 4350 | O9: =G9-I9-K9-L9+N9 -> 650 | V9: 650 | W9: 10000 | X9: 1000
A10: 9 | E10: Менеджер | G10: 10000 | H10: 5000 | J10: 23 | K10: 4000 | L10: 4350 | O10: =G10-I10-K10-L10+N10 -> 1650 | V10: =O10+S10+T10-U10 -> 1650 | W10: 10000 | X10: 0
A11: 10 | E11: Рук.от.продаж | G11: 10000 | H11: 5000 | J11: 23 | K11: 4000 | L11: 4350 | O11: 1650 | V11: =O11+S11+T11-U11 -> 1650 | W11: 10000 | X11: 0
A12: 11 | G12: 10000 | H12: 5000 | J12: 23 | K12: 4000 | L12: 4350 | O12: 1650 | X12: 0
A13: 12 | G13: 10000 | H13: 5000 | J13: 23 | K13: 4000 | L13: 4350 | O13: 1650 | V13: =O13+S13+T13-U13 -> 1650 | W13: =I13+K13+L13+O13+S13+T13 -> 10000 | X13: 0
A14: 13 | E14: Начальник склада | G14: 10000 | H14: 5000 | I14: 1000 | J14: 23 | K14: 4000 | L14: 4350 | O14: 650 | V14: =O14+S14+T14-U14 -> 650 | W14: =I14+K14+L14+O14+S14+T14 -> 10000 | X14: 1000
A15: 14 | E15: Кладовщик | G15: 10000 | H15: 5000 | J15: 23 | K15: 4000 | L15: 4350 | O15: 1650 | V15: 1650 | W15: =I15+K15+L15+O15+S15+T15 -> 10000 | X15: 0
A16: 15 | E16: Кладовщик | G16: 10000 | H16: 5000 | I16: 1000 | J16: 23 | K16: 4000 | L16: 4350 | O16: 650 | U16: 2000 | V16: -1350 | W16: =I16+K16+L16+O16+S16+T16 -> 10000 | X16: 3000
A17: 16 | G17: 10000 | H17: 5000 | J17: 23 | K17: 4000 | L17: 4350 | O17: 1650 | V17: 1650 | W17: =I17+K17+L17+O17+S17+T17 -> 10000 | X17: 0
A18: 17 | G18: 10000 | H18: 5000 | I18: 1000 | J18: 23 | K18: 4000 | L18: 4350 | O18: 650 | V18: 650 | W18: 10000 | X18: 1000
A19: 18 | G19: 10000 | H19: 5000 | J19: 23 | K19: 4000 | L19: 4350 | O19: 1650 | V19: 1650 | W19: 10000 | X19: 0
A20: 19 | E20: Водитель | G20: 10000 | H20: 5000 | J20: 23 | K20: 4000 | O20: 6000 | V20: 6000 | W20: 10000 | X20: 0
A21: 20 | E21: Уборщица | G21: 10000 | O21: =G21-I21-K21-L21 -> 10000 | V21: 10000 | W21: 10000 | X21: 0
C23: ИТОГО | G23: =SUM(G2:G21) -> 200000 | H23: =SUM(H2:H21) -> 95000 | K23: =SUM(K2:K22) -> 76000 | L23: =SUM(L2:L22) -> 78300 | O23: =SUM(O2:O22) -> 45700 | P23: 0 | Q23: 0 | R23: 0 | S23: 500 | T23: 500 | U23: 2100 | V23: 42950 | W23: 194000
O24: =SUM(L23:U23) -> 127100
C25: Налоги с ЗП
C26: НДФЛ | H26: 0.13 | I26: =H23*H26 -> 12350
C27: ПФР | H27: 0.22 | I27: =H23*H27 -> 20900
C28: ФСС | H28: 0.029 | I28: =H23*H28 -> 2755
C29: НС и ПЗ | H29: 0.002 | I29: =H23*H29 -> 190
C30: ФОМС | H30: 0.051 | I30: =H23*H30 -> 4845
I32: =SUM(I26:I31) -> 41040

Sheet Расчетный лист_аванс
A1: Расчетный листок за | B1: =[1]август_2016!#REF! -> 
A2: ФИО | B2: =Заполнить!C2 -> Иванов Иван Иванович
A3: Начислено
A5: Оклад | B5: =Заполнить!G2 -> 10000 | C5: Аванс | D5: =Заполнить!K2 -> 4000
A9: Всего начислений | B9: =SUM(B5:B8) -> 10000 | C9: Всего удержаний
A11: Сумма к выплате | B11: =D5 -> 4000

Sheet Расчетный лист_зарплата
B1: Расчетный листок за | C1: =[1]август_2016!#REF! -> 
A2: 1 | B2: =[1]август_2016!C2 -> Лось Кирилл Владимирович
B3: Начислено | D3: Удержано
B5: Оклад | C5: =Заполнить!G2 -> 10000 | D5: Аванс | E5: =Заполнить!K2 -> 4000
B6: Премия | C6: =Заполнить!T2 -> 500 | D6: Оклад на карточку | E6: =Заполнить!L2 -> 4350
B7: Бонус | C7: =Заполнить!S2 -> 500 | D7: Штрафы и др. удержания | E7: =Заполнить!U2 -> 100
B8: Отпускные | C8: =Заполнить!N2 -> 5000 | D8: Погашение задолженности | E8: =Заполнить!I2 -> 0
B9: Всего начислений | C9: =SUM(C5:C8) -> 16000 | D9: Всего удержаний | E9: =SUM(E5:E8) -> 8450
B11: Сумма к выплате | C11: =C9-E9 -> 7550
